Cogmind - Beta 14 @@@ ROGUE MODE // 2024.10.11 @ 16:47:35 Player: Kate+Gabe4evr Result: Destroyed by C-35 Carver with Improved Concussive RPG Performance ------------- Evolutions (7) 3500 Regions Visited (13) 2600 Robots Destroyed (122) 610 Value Destroyed (4461) 4461 Prototype IDs (9) 180 Alien Tech Used (0) 0 Bonus (1999) 1999 TOTAL SCORE: 13350 Bonus ------- High Alert Combat Kills 341 Follower Combat Kills 1107 Entered Garrisons 200 Used RIF Installer 500 Friendly Fire -149 Cogmind --------- Core Integrity 0/1300 Matter 79/300 Energy 98/100 System Corruption 7% Temperature Cool (0) Movement Core (50) Location -3/Research Parts ------- > --- POWER (1) -------- (None) > --- PROPULSION (6) --- (None) > --- UTILITY (12) ----- (None) > --- WEAPON (2) ------- (None) > --- INVENTORY (5) ---- Myomer Leg Relay Coupler [NC] (26) Relay Coupler [Grunt] (31) High-powered Shotgun Heavy Pick Peak State ------------ > --- POWER ------------ Antimatter Reactor > --- PROPULSION ------- Heavy Treads Heavy Treads > --- UTILITY ---------- Visual Processing Unit Improved Signal Interpreter Improved Propulsion Shielding Hardened Medium Armor Plating Hardened Medium Armor Plating Layered Medium Armor Plating Hacking Suite System Shield > --- WEAPON ----------- Backup Laser III Hypervelocity Railgun > --- INVENTORY -------- Antimatter Reactor Armored Treads Beamcaster Heavy Battle Rifle Heavy Battle Rifle [Rating: 69] Favorites ----------- Power Antimatter Reactor Engine Improved Deuterium Engine Power Core Light Nuclear Core Reactor Antimatter Reactor Propulsion Heavy Treads Treads Heavy Treads Leg Myomer Leg Wheel Armored Huge Wheel Hover Unit Backup Propulsion III Flight Unit Cooled VTOL Module Utility Hacking Suite Device Improved Sensor Array Storage Large Storage Unit Processor Visual Processing Unit Hackware Hacking Suite Protection Medium Armor Plating Weapon Particle Gun Energy Gun Particle Gun Energy Cannon Disruptor Cannon Ballistic Gun Hypervelocity Railgun Ballistic Cannon Advanced Assault Cannon Launcher Mini Grenade Launcher Impact Weapon Heavy Hammer Slashing Weapon Phasing Sabre Piercing Weapon Heavy Pick Special Melee Weapon Datajack Build | -11 -10 -9 -8 -7 -6 -6 -6 -6 -5 -5 -5 -4 -3 ------- Run | Yrd Mat Mat Mat Fac Fac Was Fac Gar Fac Ext Cet Fac Res Slots Evolved 14 | . . 2 2 2 2 . . . 2 . . 2 2 Power . | . . . . . . . . . . . . . . Propulsion 4 | . . . . . 2 . . . . . . 1 1 Utility 10 | . . 2 2 2 . . . . 2 . . 1 1 Weapon . | . . . . . . . . . . . . . . Parts Attached 143 | 6 11 25 12 22 2 9 3 14 10 7 . 3 19 Power 25 | 1 2 3 4 4 . 1 . 3 2 4 . . 1 Engine 12 | 1 1 2 1 2 . . . . 1 3 . . 1 Core 8 | . 1 1 3 2 . . . . . 1 . . . Reactor 5 | . . . . . . 1 . 3 1 . . . . Propulsion 26 | 2 . 4 2 4 2 2 . 2 4 . . 1 3 Treads 17 | 2 . 4 2 4 . 2 . 2 . . . 1 . Leg 4 | . . . . . 1 . . . . . . . 3 Wheel 1 | . . . . . 1 . . . . . . . . Hover . | . . . . . . . . . . . . . . Flight 4 | . . . . . . . . . 4 . . . . Utility 40 | 1 5 5 3 3 . 5 3 5 3 1 . 1 5 Device 10 | . . 1 . 1 . . . . 3 1 . 1 3 Storage 4 | 1 2 . . . . . 1 . . . . . . Processor 4 | . . 1 . 1 . . . 1 . . . . 1 Hackware 7 | . . 3 1 1 . . 1 . . . . . 1 Protection 15 | . 3 . 2 . . 5 1 4 . . . . . Artifact . | . . . . . . . . . . . . . . Weapon 52 | 2 4 13 3 11 . 1 . 4 1 2 . 1 10 Energy Gun 17 | 1 4 7 . 1 . . . 1 . 1 . . 2 Energy Cannon 2 | . . . . . . . . . 1 . . . 1 Ballistic Gun 12 | 1 . . 3 2 . 1 . 2 . . . 1 2 Ballistic Cannon 7 | . . . . 4 . . . . . . . . 3 Launcher 5 | . . 2 . 3 . . . . . . . . . Special Weapon . | . . . . . . . . . . . . . . Impact Weapon 1 | . . 1 . . . . . . . . . . . Slashing Weapon 1 | . . . . . . . . 1 . . . . . Piercing Weapon 3 | . . . . . . . . . . 1 . . 2 Special Melee Weapon 4 | . . 3 . 1 . . . . . . . . . Unidentified Prototypes 5 | . . . . 1 . . . . 1 1 . . 2 Corrupted Parts 1 | . . . . 1 . . . . . . . . . System Corruption 8 | . . . . 8 . . . . . . . . . Parts Lost 60 | . 5 7 5 11 . . . 12 1 12 . . 7 Power 7 | . 1 1 . 1 . . . 1 . 2 . . 1 Propulsion 12 | . . 1 2 3 . . . 1 1 3 . . 1 Utility 22 | . 1 3 2 3 . . . 5 . 6 . . 2 Weapon 19 | . 3 2 1 4 . . . 5 . 1 . . 3 Highest Loss Streak 10 | . 2 2 2 10 . . . 5 1 4 . . 4 To Critical Strikes 1 | . . . . . . . . . . . . . 1 Average Slot Usage (%) 80 | . 96 98 98 94 29 66 85 79 69 47 . 1 29 Engine 3 | . 8 7 2 3 . . . . 1 2 . . 2 Core 2 | . 5 3 6 3 . . . . . . . . . Reactor 1 | . . . . . . 4 6 5 3 . . . . Treads 15 | . 28 22 17 13 . 9 13 16 12 . . 1 . Device 2 | . . 7 . 6 . . . . 6 8 . . 2 Storage 6 | . 14 11 9 6 . . 2 6 3 . . . . Processor 11 | . . 11 9 15 13 13 13 19 17 14 . . . Hackware 11 | . . 10 26 28 13 13 14 10 5 4 . . 3 Protection 6 | . 13 3 8 . . 9 22 6 3 . . . . Energy Gun 9 | . 25 20 10 . . 7 6 3 2 1 . . 2 Ballistic Gun 2 | . . . 7 . . 3 6 5 . . . . 1 Ballistic Cannon 1 | . . . . 12 . . . . . . . . 1 Peak Build Rating 69 | 6 13 24 31 44 20 67 69 69 66 47 1 8 48 Average Rating 35 | 4 11 19 29 38 14 50 67 55 52 33 1 2 35 On Entrance 23 | . 6 8 23 29 12 12 67 69 51 43 1 1 1 Naked Turns 174 | . . . . . . . . . . 9 28 128 9 Heaviest Build 63 | 11 38 39 40 44 . 51 63 61 57 18 . 6 31 Greatest Support 140 | 40 40 44 45 50 28 140 140 140 126 15 3 27 70 Greatest Overweight (x) 6 | 1 . . . 6 . . . . 5 3 . 1 3 Average Overweight (x) . | . . . . . . . . . . . . . . Largest Inventory Capacity 15 | 8 15 15 15 15 5 5 15 15 15 5 5 5 5 Average Capacity 12 | 6 13 15 15 14 5 5 8 15 11 5 5 5 5 Most Carried 15 | 2 8 15 15 14 5 5 10 12 9 5 5 5 5 Average Carried 8 | 1 6 12 14 11 5 4 5 7 6 4 5 5 3 Final Capacity 15 | 8 15 15 15 5 5 5 15 15 5 5 5 5 5 Final Carried 15 | 2 5 13 15 5 5 5 10 7 4 5 5 5 5 Class Distribution -------------------- 35% | Mutant 33% | Hacker-Mutant 15% | Scavenger-Mutant 12% | Hacker-Skirmisher Dominant Class ---------------- Mutant | -10/Materials Mutant | -9/Materials Hacker-Mutant | -8/Materials Hacker-Skirmisher | -7/Factory Hacker-Mutant | -6/Factory Hacker-Mutant | -6/Waste Hacker-Mutant | -6/Factory Scavenger-Mutant | -6/Garrison Scavenger-Mutant | -5/Factory Scout | -5/Extension Mutant | -5/Cetus Mutant | -4/Factory Mutant | -3/Research Resources | -11 -10 -9 -8 -7 -6 -6 -6 -6 -5 -5 -5 -4 -3 ----------- Run | Yrd Mat Mat Mat Fac Fac Was Fac Gar Fac Ext Cet Fac Res Matter Collected 2576 | 208 159 330 272 328 . 383 64 571 44 101 . . 116 Remotely . | . . . . . . . . . . . . . . Salvage Created 4210 | . 863 899 741 615 . . 73 873 82 . . . 64 Parts 221 | . 38 55 36 54 . . 4 31 1 . . . 2 Haulers Intercepted 2 | . 1 . 1 . . . . . . . . . . Recyclers Shooed . | . . . . . . . . . . . . . . Parts Field Recycled . | . . . . . . . . . . . . . . Retrieved Matter . | . . . . . . . . . . . . . . Parts Self-Destructed . | . . . . . . . . . . . . . . Prevented . | . . . . . . . . . . . . . . Kills | -11 -10 -9 -8 -7 -6 -6 -6 -6 -5 -5 -5 -4 -3 ------- Run | Yrd Mat Mat Mat Fac Fac Was Fac Gar Fac Ext Cet Fac Res Combat Hostiles Destroyed 101 | . 18 31 10 20 . . 1 17 1 . . . 3 Melee 8 | . . 3 . . . . . 3 1 . . . 1 Guns 62 | . 15 19 9 4 . . 1 14 . . . . . Cannons 9 | . . . . 7 . . . . . . . . 2 AOE 19 | . 3 7 . 9 . . . . . . . . . Classes Destroyed 13 | . 3 4 2 2 . . . 2 . . . . . Worker 4 | . 1 1 1 1 . . . . . . . . . Builder 8 | . . 2 . 6 . . . . . . . . . Hauler 2 | . 1 . 1 . . . . . . . . . . Recycler 3 | . . . 2 1 . . . . . . . . . Watcher 3 | . . 1 2 . . . . . . . . . . Swarmer 29 | . . 13 . 12 . . . 4 . . . . . Grunt 49 | . 18 10 5 4 . . 1 10 . . . . 1 Brawler 1 | . . . . . . . . 1 . . . . . Duelist 2 | . . . . 1 . . . 1 . . . . . Sentry 13 | . . 8 3 1 . . . . 1 . . . . Hunter 4 | . . . 2 . . . . . . . . . 2 Programmer 2 | . . . . 2 . . . . . . . . . Behemoth 1 | . . . . . . . . 1 . . . . . Wasp 1 | . . . . . . . 1 . . . . . . Best Kill Streak 18 | . 3 7 4 18 . . 1 4 1 . . . 3 Combat Bots Only 10 | . 2 4 3 10 . . 1 4 1 . . . 3 Max Kills in Single Turn 4 | . 1 3 1 4 . . 1 1 1 . . . 1 Gunslinging . | . . . . . . . . . . . . . . Exploded 3 | . 1 3 . 2 . . . . . . . . . Melee 1 | . . 1 . . . . . 1 1 . . . 1 Uniques/NPCs Destroyed . | . . . . . . . . . . . . . . Combat | -11 -10 -9 -8 -7 -6 -6 -6 -6 -5 -5 -5 -4 -3 -------- Run | Yrd Mat Mat Mat Fac Fac Was Fac Gar Fac Ext Cet Fac Res Hostile Shots Fired 1094 | . 60 138 85 171 42 . 15 226 53 96 3 22 183 Missed 347 | . 20 33 18 56 18 . 4 56 22 41 3 12 64 Damage Taken 13105 | . 617 1226 949 2035 408 23 327 3460 606 1123 . 159 2172 Core 3989 | . 75 196 60 573 353 23 24 397 137 723 . 122 1306 Absorbed by Shields 133 | . . . . . . . . . 133 . . . . Redirected to Shielding 133 | . . . . . . . 23 94 16 . . . . Ignored by Resistances 139 | . . . . . . . . . 76 63 . . . Regen/Repaired (Parts) 1390 | . . . . . . . 16 1361 13 . . . . Core Remaining (%) 54 | 100 70 51 89 18 . . . 6 . . 14 89 . Volleys Fired 324 | . 37 65 49 46 . 4 12 76 5 8 . . 22 Largest 2 | . 2 2 2 2 . 2 2 2 1 1 . . 2 Hottest 132 | . 90 130 130 96 . 80 80 108 81 40 . . 132 Shots Fired 575 | . 68 122 97 75 . 8 21 142 5 8 . . 29 Gun 475 | . 68 114 97 15 . 8 21 142 . 8 . . 2 Cannon 82 | . . . . 50 . . . . 5 . . . 27 Launcher 18 | . . 8 . 10 . . . . . . . . . Special . | . . . . . . . . . . . . . . Kinetic 238 | . . . 48 61 . . 12 98 . . . . 19 Thermal 232 | . . 108 49 4 . 8 9 44 . 8 . . 2 Explosive 18 | . . 8 . 10 . . . . . . . . . Electromagnetic 87 | . 68 6 . . . . . . 5 . . . 8 Robot Hit Streak 17 | . 9 13 17 6 . 4 4 10 5 2 . . 9 Robot Miss Streak 5 | . 3 4 5 4 . 2 3 4 1 1 . . 3 Penetration Max 1 | . . . 1 . . . 1 1 . . . . . Secondary Targets 5 | . 1 1 . 1 . . . 2 . . . . . Max Gunslinging Chain 1 | . 1 1 . 1 . . . 1 . . . . . Shots Hit Robots 413 | . 57 93 65 36 . 5 11 102 20 7 . . 17 Core Hits 228 | . 44 43 31 50 . 1 5 40 3 3 . . 8 Critical Kills 4 | . . . . . . . 1 3 . . . . . Critical Parts Destroyed 14 | . . 1 . . . . 3 10 . . . . . Critical Strikes 27 | . . 3 . 1 . . 4 15 2 . . . 2 Burn 2 | . . 2 . . . . . . . . . . . Destroy 18 | . . . . . . . 4 14 . . . . . Blast 2 | . . . . 1 . . . . . . . . 1 Smash 1 | . . 1 . . . . . . . . . . . Sever 3 | . . . . . . . . 1 2 . . . . Impale 1 | . . . . . . . . . . . . . 1 Melee Attacks 73 | . . 11 . 1 . . . 23 19 2 . . 17 Impact 10 | . . 10 . . . . . . . . . . . Slashing 42 | . . . . . . . . 23 19 . . . . Piercing 19 | . . . . . . . . . . 2 . . 17 Sneak Attacks 1 | . . . . 1 . . . . . . . . . Combat Hostiles . | . . . . . . . . . . . . . . Follow-up Attacks . | . . . . . . . . . . . . . . Damage Inflicted 10659 | . 1164 2269 1152 2240 . 63 121 2106 749 185 . . 610 Guns 5408 | . 826 1226 1146 194 . 63 121 1740 . 92 . . . Cannons 1199 | . . . . 563 . . . . 64 . . . 572 Explosions 2592 | . 318 795 . 1479 . . . . . . . . . Melee 1370 | . . 217 . . . . . 366 685 64 . . 38 Ramming 90 | . 20 31 6 4 . . . . . 29 . . . Kinetic 3192 | . . . 580 719 . . 68 1281 . . . . 544 Thermal 2759 | . 318 1170 566 38 . 63 53 459 . 92 . . . Explosive 2005 | . . 795 . 1210 . . . . . . . . . Electromagnetic 1243 | . 826 56 . 269 . . . . 64 . . . 28 Impact 217 | . . 217 . . . . . . . . . . . Slashing 1051 | . . . . . . . . 366 685 . . . . Piercing 102 | . . . . . . . . . . 64 . . 38 Highest Corruption 10 | . 1 . 2 8 . . 1 3 . 10 10 . 4 Average Corruption 2 | . 1 . 2 8 . . 1 2 . 1 10 . 2 Corruption Purged . | . . . . . . . . . . . . . . Corruption Blocked . | . . . . . . . . . . . . . . Effects 53 | . 9 . 7 3 . . . 31 . 3 . . . Message Errors 13 | . 3 . 2 . . . . 7 . 1 . . . Matter Fused 14 | . 2 . 2 1 . . . 8 . 1 . . . Heat Flow Errors 4 | . 1 . . 1 . . . 2 . . . . . Energy Discharges 7 | . . . 3 . . . . 4 . . . . . Parts Rejected 2 | . . . . 1 . . . 1 . . . . . Parts Fused 1 | . . . . . . . . 1 . . . . . Data Loss (minor) 7 | . 2 . . . . . . 4 . 1 . . . Data Loss (major) 1 | . . . . . . . . 1 . . . . . Alerts 2 | . 1 . . . . . . 1 . . . . . Weapon Failures 2 | . . . . . . . . 2 . . . . . Overload Shots . | . . . . . . . . . . . . . . Overflow Damage 245 | . 4 125 . 35 . . . 7 60 . . . 14 Projectiles 33 | . . . . 19 . . . . . . . . 14 Explosions 49 | . 4 29 . 16 . . . . . . . . . Melee 163 | . . 96 . . . . . 7 60 . . . . Knockbacks 19 | . . 1 . 6 . . . . . 1 . . 11 Impact 2 | . . 1 . . . . . . . 1 . . . Kinetic 16 | . . . . 6 . . . . . . . . 10 Secondary 1 | . . . . . . . . . . . . . 1 Self-Inflicted Damage 449 | . 126 41 . 271 . . . . . 11 . . . Shots 13 | . 4 1 . 8 . . . . . . . . . Rammed 28 | . 2 7 1 2 . . . . . 16 . . . Targets Rammed 30 | . 2 9 1 2 . . . . . 16 . . . Kicked . | . . . . . . . . . . . . . . Crushed 2 | . . 2 . . . . . . . . . . . Highest Temperature 404 | . 183 264 291 166 . 7 338 404 96 . . . 312 Average Temperature 87 | . 69 78 105 33 . 4 139 97 50 . . . 109 Received Heat Transfer 3012 | . 270 387 342 144 126 9 72 1140 90 354 . 18 60 Effects 4 | . . 3 . . . . . 1 . . . . . Interference 3 | . . 3 . . . . . . . . . . . Damage (minor) 1 | . . . . . . . . 1 . . . . . Siege Activations . | . . . . . . . . . . . . . . Robots Corrupted 2 | . . 2 . . . . . . . . . . . Combat Hostiles 2 | . . 2 . . . . . . . . . . . Parts Fried 3 | . 1 1 . 1 . . . . . . . . . Impact Corruptions 4 | . . 4 . . . . . . . . . . . Robots Melted 1 | . . . 1 . . . . . . . . . . Combat Hostiles 1 | . . . 1 . . . . . . . . . . Parts Melted 4 | . . 2 2 . . . . . . . . . . Heat Transferred 6642 | . 500 2960 1406 111 . 185 148 1110 . 222 . . . Parts Sabotaged . | . . . . . . . . . . . . . . Parts Stolen . | . . . . . . . . . . . . . . Parts Stripped . | . . . . . . . . . . . . . . Power Chain Reactions 5 | . 5 . . . . . . . . . . . . Alert | -11 -10 -9 -8 -7 -6 -6 -6 -6 -5 -5 -5 -4 -3 ------- Run | Yrd Mat Mat Mat Fac Fac Was Fac Gar Fac Ext Cet Fac Res Peak Influence 1204 | . 233 436 381 386 387 161 595 1204 662 571 319 313 236 Initial 632 | . . 12 183 172 189 135 . 400 632 286 319 178 164 Average 294 | . 79 155 279 85 229 102 251 864 628 389 319 223 143 Maximum Alert Level 4 | . 1 2 1 1 1 . 2 4 2 2 1 1 1 Low Security (%) 55 | 100 98 71 19 93 53 100 53 . . . . 40 61 Level 1 16 | . 1 17 80 6 46 . 1 . . 49 100 59 38 Level 2 16 | . . 10 . . . . 44 25 100 50 . . . Level 3 7 | . . . . . . . . 48 . . . . . Level 4 4 | . . . . . . . . 25 . . . . . Level 5 . | . . . . . . . . . . . . . . High Security . | . . . . . . . . . . . . . . Max Security . | . . . . . . . . . . . . . . Squads Dispatched 26 | . 5 3 1 4 . . 6 . 2 4 . . 1 Investigation 10 | . 4 1 . . . . . . 1 4 . . . Extermination 3 | . . . . 2 . . 1 . . . . . . Reinforcement 11 | . 1 2 1 2 . . 4 . . . . . 1 Assault 1 | . . . . . . . . . 1 . . . . Garrison 1 | . . . . . . . 1 . . . . . . Intercept . | . . . . . . . . . . . . . . Searches Triggered . | . . . . . . . . . . . . . . Construction Impeded 2 | . . . . 1 . . 1 . . . . . . Haulers Reinforced . | . . . . . . . . . . . . . . Active Scanning Responses . | . . . . . . . . . . . . . . Cargo Convoy Interrupts 1 | . . . . . . . . . . . . . 1 Stealth | -11 -10 -9 -8 -7 -6 -6 -6 -6 -5 -5 -5 -4 -3 --------- Run | Yrd Mat Mat Mat Fac Fac Was Fac Gar Fac Ext Cet Fac Res Distress Signals 13 | . 1 6 3 1 . . . . . 1 1 . . Communications Jammed . | . . . . . . . . . . . . . . Distress Signals . | . . . . . . . . . . . . . . Times Spotted 292 | . 30 55 20 38 13 4 11 37 12 40 5 10 17 Peak Tracking Total 17 | . 4 7 6 8 9 2 3 6 9 17 5 6 10 Tactical Retreats 34 | . . 2 3 6 3 1 1 8 2 5 . 2 1 Traps | -11 -10 -9 -8 -7 -6 -6 -6 -6 -5 -5 -5 -4 -3 ------- Run | Yrd Mat Mat Mat Fac Fac Was Fac Gar Fac Ext Cet Fac Res Traps Triggered 10 | . 2 . 2 1 3 . . 1 . 1 . . . Indirectly . | . . . . . . . . . . . . . . Trap Hack Attempts . | . . . . . . . . . . . . . . Triggered . | . . . . . . . . . . . . . . Disarmed . | . . . . . . . . . . . . . . Reprogrammed . | . . . . . . . . . . . . . . Reused . | . . . . . . . . . . . . . . Traps Extracted . | . . . . . . . . . . . . . . Installed . | . . . . . . . . . . . . . . Triggered . | . . . . . . . . . . . . . . Machines | -11 -10 -9 -8 -7 -6 -6 -6 -6 -5 -5 -5 -4 -3 ---------- Run | Yrd Mat Mat Mat Fac Fac Was Fac Gar Fac Ext Cet Fac Res Machines Disabled 9 | . . . . 2 . . 4 3 . . . . . Max in Single Turn 1 | . . . . 1 . . . 1 . . . . . Garrison Relay 2 | . . . . . . . . 2 . . . . . Energy Cycler 2 | . . . . . . . . . . 2 . . . Machines Repaired . | . . . . . . . . . . . . . . Machines Dismantled . | . . . . . . . . . . . . . . Machines Sabotaged . | . . . . . . . . . . . . . . Overloaded Fab Kills . | . . . . . . . . . . . . . . Hacking | -11 -10 -9 -8 -7 -6 -6 -6 -6 -5 -5 -5 -4 -3 --------- Run | Yrd Mat Mat Mat Fac Fac Was Fac Gar Fac Ext Cet Fac Res Machines Accessed 47 | . 7 10 5 5 . . 5 1 2 9 . . 3 Terminals 45 | . 7 10 5 4 . . 4 1 2 9 . . 3 Fabricators . | . . . . . . . . . . . . . . Repair Stations . | . . . . . . . . . . . . . . Recycling Units . | . . . . . . . . . . . . . . Scanalyzers . | . . . . . . . . . . . . . . Garrison Access 2 | . . . . 1 . . 1 . . . . . . Total Hacks 134 | . 25 29 17 24 . . 11 2 3 19 . . 4 Successful 80 | . 14 19 11 17 . . 8 . 1 8 . . 2 Failed 53 | . 10 10 6 7 . . 3 2 2 11 . . 2 Catastrophic 13 | . 1 1 . 1 . . 2 1 2 5 . . . Database Lockouts 1 | . 1 . . . . . . . . . . . . Manual 98 | . 22 26 12 22 . . 9 . 2 1 . . 4 Terminals 126 | . 25 29 17 17 . . 10 2 3 19 . . 4 Fabricators . | . . . . . . . . . . . . . . Repair Stations . | . . . . . . . . . . . . . . Recycling Units . | . . . . . . . . . . . . . . Scanalyzers . | . . . . . . . . . . . . . . Garrison Access 8 | . . . . 7 . . 1 . . . . . . Terminal Hacks 44 | . 7 10 7 8 . . 3 . 1 8 . . . Record 5 | . . . 3 1 . . 1 . . . . . . Robot Analysis 2 | . 2 . . . . . . . . . . . . Prototype ID Bank 2 | . 1 . 1 . . . . . . . . . . Open Door 8 | . . . . . . . . . 1 7 . . . Level Access Points 1 | . . . . 1 . . . . . . . . . Emergency Access Points 1 | . . . . 1 . . . . . . . . . Terminal Index 4 | . . 1 1 1 . . 1 . . . . . . Garrison Index 1 | . . . . 1 . . . . . . . . . Alert Level 4 | . . 2 . 1 . . 1 . . . . . . Unreport Threat 5 | . 2 2 . 1 . . . . . . . . . Locate Traps 3 | . . 3 . . . . . . . . . . . Recall Investigation 3 | . . 1 . 1 . . . . . 1 . . . Hauler Manifests 1 | . . . 1 . . . . . . . . . . Zone Layout 4 | . 2 1 1 . . . . . . . . . . Fabricator Hacks . | . . . . . . . . . . . . . . Repair Station Hacks . | . . . . . . . . . . . . . . Recycling Unit Hacks . | . . . . . . . . . . . . . . Scanalyzer . | . . . . . . . . . . . . . . Garrison Access Hacks 1 | . . . . . . . 1 . . . . . . Unlock Access 1 | . . . . . . . 1 . . . . . . Unauthorized Hacks 35 | . 7 9 4 9 . . 4 . . . . . 2 Terminals 30 | . 7 9 4 4 . . 4 . . . . . 2 Botnet 30 | . 7 9 4 4 . . 4 . . . . . 2 Fabricators . | . . . . . . . . . . . . . . Repair Stations . | . . . . . . . . . . . . . . Recycling Units . | . . . . . . . . . . . . . . Scanalyzers . | . . . . . . . . . . . . . . Garrison Access 5 | . . . . 5 . . . . . . . . . Broadcast 1 | . . . . 1 . . . . . . . . . Decoy 1 | . . . . 1 . . . . . . . . . Redirect 1 | . . . . 1 . . . . . . . . . Reprogram 1 | . . . . 1 . . . . . . . . . Intercept 1 | . . . . 1 . . . . . . . . . Data Cores Recovered . | . . . . . . . . . . . . . . Used . | . . . . . . . . . . . . . . Hacking Detections 36 | . 5 7 5 4 . . 4 1 1 7 . . 2 Full Trace Events 10 | . 3 2 . . . . . . 1 4 . . . Feedback Events . | . . . . . . . . . . . . . . Feedback Blocked . | . . . . . . . . . . . . . . Robot Schematics Acquired . | . . . . . . . . . . . . . . Robots Built . | . . . . . . . . . . . . . . Authchips . | . . . . . . . . . . . . . . Time . | . . . . . . . . . . . . . . Total Robot Build Rating . | . . . . . . . . . . . . . . Part Schematics Acquired . | . . . . . . . . . . . . . . Parts Built . | . . . . . . . . . . . . . . Authchips . | . . . . . . . . . . . . . . Time . | . . . . . . . . . . . . . . Total Part Build Rating . | . . . . . . . . . . . . . . Parts Repaired . | . . . . . . . . . . . . . . Time . | . . . . . . . . . . . . . . Parts Recycled . | . . . . . . . . . . . . . . Recycled Matter . | . . . . . . . . . . . . . . Retrieved Matter . | . . . . . . . . . . . . . . Retrieved Components . | . . . . . . . . . . . . . . Parts Scanalyzed . | . . . . . . . . . . . . . . Part Schematics Acquired . | . . . . . . . . . . . . . . Parts Damaged . | . . . . . . . . . . . . . . Bothacking | -11 -10 -9 -8 -7 -6 -6 -6 -6 -5 -5 -5 -4 -3 ------------ Run | Yrd Mat Mat Mat Fac Fac Was Fac Gar Fac Ext Cet Fac Res Used RIF Installer 1 | . . . . . . . . 1 . . . . . Robots Hacked 1 | . . 1 . . . . . . . . . . . Non-combat 1 | . . 1 . . . . . . . . . . . Combat . | . . . . . . . . . . . . . . Robot Hacks Applied 1 | . . 1 . . . . . . . . . . . parse_system 1 | . . 1 . . . . . . . . . . . Relay Couplers Released 7 | . . . . . . . . 7 . . . . . Machine Destruction 7 | . . . . . . . . 7 . . . . . Fabnet Peak Effective % . | . . . . . . . . . . . . . . Robots Rewired 6 | . . . . . . . . 3 . 3 . . . Allies Hacked . | . . . . . . . . . . . . . . Hacks Repelled . | . . . . . . . . . . . . . . Allies | -11 -10 -9 -8 -7 -6 -6 -6 -6 -5 -5 -5 -4 -3 -------- Run | Yrd Mat Mat Mat Fac Fac Was Fac Gar Fac Ext Cet Fac Res Total Allies 37 | . . . . . 3 19 . 3 . 12 . . . Largest Group 19 | . . . . . 3 19 16 5 2 8 . . . Highest-Rated Group 687 | . . . . . 93 687 580 137 51 202 . . . Highest-Rated Ally 50 | . . . . . 31 50 50 46 26 31 . . . Total Orders . | . . . . . . . . . . . . . . Ally Attacks 369 | . . . . . 22 163 101 38 . 45 . . . Total Damage 9600 | . . . . . 323 4745 2480 912 . 1140 . . . Kills 44 | . . . . . 2 7 18 8 . 9 . . . Allies Corrupted 1 | . . . . . . . . . . 1 . . . Allies Melted . | . . . . . . . . . . . . . . Intel | -11 -10 -9 -8 -7 -6 -6 -6 -6 -5 -5 -5 -4 -3 ------- Run | Yrd Mat Mat Mat Fac Fac Was Fac Gar Fac Ext Cet Fac Res Robot Analysis Total 2 | . 2 . . . . . . . . . . . . Derelict Logs Recovered . | . . . . . . . . . . . . . . Drone Launches . | . . . . . . . . . . . . . . Drone Recoveries . | . . . . . . . . . . . . . . Exploration | -11 -10 -9 -8 -7 -6 -6 -6 -6 -5 -5 -5 -4 -3 ------------- Run | Yrd Mat Mat Mat Fac Fac Was Fac Gar Fac Ext Cet Fac Res Turns Passed 10126 | 64 1466 1549 721 1405 204 579 843 1618 475 372 28 178 624 Spaces Moved 6593 | 38 785 719 319 893 300 429 497 785 534 576 56 287 375 Core 1035 | 11 . . . 146 224 104 . . . 90 56 264 140 Treads 4327 | 27 785 719 319 747 . 265 497 785 160 . . 23 . Legs 290 | . . . . . 55 . . . . . . . 235 Wheels 21 | . . . . . 21 . . . . . . . . Hover 60 | . . . . . . 60 . . . . . . . Flight 860 | . . . . . . . . . 374 486 . . . Fastest Speed 29 | 50 160 145 145 50 50 50 160 160 29 29 50 50 50 Average Speed 122 | 140 160 153 146 135 66 121 160 160 70 37 50 59 107 Slowest Speed 360 | 160 160 160 152 350 120 160 160 160 360 230 50 170 200 Overloaded Moves . | . . . . . . . . . . . . . . Propulsion Burnouts . | . . . . . . . . . . . . . . Robots Hopped 18 | . . . . . . . . . 3 15 . . . Cave-ins Triggered . | . . . . . . . . . . . . . . Exploration Rate (%) 41 | 4 95 79 38 30 13 97 15 72 19 73 23 10 7 Regions Visited 13 Branch Regions 2 Pre-discovered Areas . | . . . . . . . . . . . . . . Known Exits Taken 3 | . . . . 1 . . 1 . 1 . . . . Unknown Exits Taken 7 | 1 1 1 1 . . . . . . 1 1 1 . Scrap Searched . | . . . . . . . . . . . . . . Spaces Dug 22 | . . 4 . 7 . . . 5 . . . . 6 Terrain Destroyed 141 | . 21 62 . 42 . . . 5 . . . . 11 Melee 15 | . . 4 . . . . . 5 . . . . 6 Projectile 10 | . . . . 5 . . . . . . . . 5 AOE 116 | . 21 58 . 37 . . . . . . . . . Terrain Rammed . | . . . . . . . . . . . . . . Walls Destroyed . | . . . . . . . . . . . . . . Machines Disabled . | . . . . . . . . . . . . . . Actions | -11 -10 -9 -8 -7 -6 -6 -6 -6 -5 -5 -5 -4 -3 --------- Run | Yrd Mat Mat Mat Fac Fac Was Fac Gar Fac Ext Cet Fac Res Total 7924 | 46 923 1021 472 1006 305 479 525 971 597 704 55 292 528 Wait 624 | 1 80 163 86 34 1 25 5 56 21 69 . . 83 Move 6548 | 37 784 718 318 892 300 428 496 783 527 549 55 286 375 Hop 14 | . . . . . . . . . 3 11 . . . Pick Up 56 | 2 7 21 4 1 . 4 6 8 . 1 . . 2 Fast Attach 52 | 6 1 1 1 2 2 8 1 2 9 4 . 3 12 Attach 48 | . 4 9 5 11 . . . 12 1 2 . . 4 Detach 15 | . . . . 5 . . . 3 3 1 . . 3 Swap 43 | . 6 15 6 9 . 1 2 . . 1 . . 3 Drop 54 | . 2 9 2 3 2 9 3 2 9 3 . 3 7 Fire 324 | . 37 65 49 46 . 4 12 76 5 8 . . 22 Melee 73 | . . 11 . 1 . . . 23 19 2 . . 17 Ram 16 | . . . . . . . . . . 16 . . . Kick . | . . . . . . . . . . . . . . Crush 14 | . 2 9 1 2 . . . . . . . . . Escape Stasis 18 | . . . . . . . . . . 18 . . . Rewire 25 | . . . . . . . . 6 . 19 . . . Trap . | . . . . . . . . . . . . . . Miscellaneous . | . . . . . . . . . . . . . . Route ------- -11/Scrapyard -10/Materials (discovered 5 exits: *Mat x3 / [*Min x2]) -9/Materials (discovered 3 exits: *Mat x2 / [*Min]) -8/Materials -7/Factory (discovered 4 exits: *Fac x4) -6/Factory -6/Waste -6/Factory (discovered 2 exits: *Fac / Gar) -6/Garrison (discovered 4 exits: *Fac x3 / *Fac) -5/Factory (discovered 2 exits: *Upp / *Ext) -5/Extension (discovered 2 exits: [*Fac] / [*Cet]) -5/Cetus -4/Factory -3/Research History --------- Turn | Location | Event 18 | -11/Scrapyard | Discovered new exit (range 15) 65 | -11/Scrapyard | Entered Materials 130 | -10/Materials | Central database locked down 130 | -10/Materials | Discovered new exit (range 13) 313 | -10/Materials | Build established: Mutant 548 | -10/Materials | Discovered new exit (range 11) 709 | -10/Materials | Discovered new exit (range 16) 838 | -10/Materials | Discovered new exit (range 12) 1051 | -10/Materials | Discovered new exit (range 15) 1531 | -10/Materials | Entered another Materials area 1531 | -9/Materials | Evolved 2 slots: Utility x2 2159 | -9/Materials | Discovered new exit (range 7) 2370 | -9/Materials | Discovered new exit (range 11) 2966 | -9/Materials | Build established: Hacker-Mutant 3050 | -9/Materials | Discovered new exit (range 18) 3080 | -9/Materials | Entered another Materials area 3080 | -8/Materials | Evolved 2 slots: Utility x2 3732 | -8/Materials | Discovered new exit (range 14) 3801 | -8/Materials | Entered Factory 3801 | -7/Factory | Evolved 2 slots: Utility x2 4100 | -7/Factory | Build established: Hacker-Skirmisher 5080 | -7/Factory | Core integrity fell below 50% 5129 | -7/Factory | Lost 10 parts (3n3u4w) 5133 | -7/Factory | Destroyed 10 combat bots 5197 | -7/Factory | Identified exit to Factory 5204 | -7/Factory | Core integrity fell below 20% 5206 | -7/Factory | Entered another Factory area 5206 | -6/Factory | Evolved 2 slots: Propulsion x2 5322 | -6/Factory | Allied Derelicts emerged from ambush trap array 5345 | -6/Factory | Build established: Hacker-Mutant 5378 | -6/Factory | Lost 3 allies 5410 | -6/Factory | Sucked down chute 5410 | -6/Factory | Entered Waste 5411 | -6/Waste | Met a frightened Derelict 5442 | -6/Waste | Spotted C-40 Crusher 5446 | -6/Waste | Spotted C-40 Crusher 5451 | -6/Waste | Spotted C-40 Crusher 5456 | -6/Waste | Warlord forces began an assault 5528 | -6/Waste | Spotted C-40 Crusher 5531 | -6/Waste | Found Damper Plating 5535 | -6/Waste | Allies destroyed C-40 Crusher 5546 | -6/Waste | Allies destroyed C-40 Crusher 5552 | -6/Waste | Allies destroyed C-40 Crusher 5569 | -6/Waste | Allies destroyed C-40 Crusher 5957 | -6/Waste | Discovered new exit (range 12) 5976 | -6/Waste | Identified exit to Factory 5989 | -6/Waste | Entered Factory 5989 | -6/Factory | Accompanied by 16 allies 6480 | -6/Factory | Lost 5 allies 6583 | -6/Factory | Discovered new exit (range 16) 6613 | -6/Factory | Identified exit to Factory 6817 | -6/Factory | Identified exit to Garrison 6825 | -6/Factory | Garrison activated, responded to threat 6832 | -6/Factory | Entered Garrison 6832 | -6/Garrison | Accompanied by 4 allies 6853 | -6/Garrison | Lost 3 allies 6934 | -6/Garrison | Spotted B-75 Beast 6939 | -6/Garrison | Triggered checkpoint 6968 | -6/Garrison | Core integrity fell below 50% 6989 | -6/Garrison | Destroyed B-75 Beast 7082 | -6/Garrison | Triggered checkpoint 7115 | -6/Garrison | Triggered checkpoint 7185 | -6/Garrison | Lost 3 parts (1u2w) 7242 | -6/Garrison | Triggered checkpoint 7392 | -6/Garrison | Discovered exit to Factory (range 12) 7434 | -6/Garrison | Triggered checkpoint 7454 | -6/Garrison | Core integrity fell below 20% 7487 | -6/Garrison | Garrison Relay disabled 7554 | -6/Garrison | Triggered checkpoint 7557 | -6/Garrison | Build established: Scavenger-Mutant 7627 | -6/Garrison | Lost 5 parts (1p1n2u1w) 7681 | -6/Garrison | Discovered new exit (range 5) 7686 | -6/Garrison | Identified exit to Factory 7896 | -6/Garrison | Discovered exit to Factory (range 12) 7920 | -6/Garrison | Triggered checkpoint 7964 | -6/Garrison | Garrison Relay disabled 8375 | -6/Garrison | Discovered exit to Factory (range 11) 8389 | -6/Garrison | Installed Relay Interface Framework 8450 | -6/Garrison | Entered Factory 8450 | -5/Factory | Accompanied by 2 allies 8450 | -5/Factory | Evolved 2 slots: Utility x2 8750 | -5/Factory | First assault squad dispatched 8913 | -5/Factory | Discovered new exit (range 13) 8917 | -5/Factory | Discovered new exit (range 6) 8918 | -5/Factory | Identified exit to Extension 8921 | -5/Factory | Identified exit to Upper Caves 8925 | -5/Factory | Entered Extension 9015 | -5/Extension | Rescued a captive Derelict 9016 | -5/Extension | Rescued a captive Derelict 9018 | -5/Extension | Rescued a captive Derelict 9021 | -5/Extension | Rescued a captive Derelict 9034 | -5/Extension | Rescued a captive Derelict 9034 | -5/Extension | Rescued a captive Derelict 9060 | -5/Extension | Rescued a captive Derelict 9060 | -5/Extension | Rescued a captive Derelict 9114 | -5/Extension | Spotted B-75 Beast 9123 | -5/Extension | Lost 3 allies 9163 | -5/Extension | Spotted B-75 Beast 9198 | -5/Extension | Lost 3 parts (1p2u) 9225 | -5/Extension | Rescued a captive Derelict 9247 | -5/Extension | Rescued a captive Derelict 9260 | -5/Extension | Lost 4 parts (2n1u1w) 9267 | -5/Extension | Energy Cycler disabled 9269 | -5/Extension | Rescued a captive Derelict 9276 | -5/Extension | Core integrity fell below 50% 9289 | -5/Extension | System corruption reached 10% 9289 | -5/Extension | Discovered new exit (range 10) 9291 | -5/Extension | Discovered new exit (range 6) 9294 | -5/Extension | Core integrity fell below 20% 9297 | -5/Extension | Entered Cetus 9305 | -5/Cetus | Spotted Cetus Guard 9305 | -5/Cetus | Spotted Cetus Guard 9305 | -5/Cetus | Spotted Cetus Guard 9307 | -5/Cetus | Spotted Cetus Guard 9317 | -5/Cetus | Discovered new exit (range 16) 9319 | -5/Cetus | Lost 3 parts (3u) 9325 | -5/Cetus | Entered Factory 9325 | -4/Factory | Evolved 2 slots: Propulsion x1, Utility x1 9476 | -4/Factory | Build established: Mutant 9500 | -4/Factory | Discovered new exit (range 6) 9503 | -4/Factory | Entered Research 9503 | -3/Research | Evolved 2 slots: Propulsion x1, Utility x1 9686 | -3/Research | Lost 3 parts (1u2w) 10102 | -3/Research | Spotted Executioner 10103 | -3/Research | Cargo convoy interrupted 10103 | -3/Research | Core integrity fell below 50% 10115 | -3/Research | Core integrity fell below 20% 10127 | -3/Research | Destroyed by C-35 Carver with Improved Concussive RPG Last Messages --------------- 10105_ Slug penetrates Wall. 10105_ Particle Synthesizer disabled. 10105_ Penetrated by Slug. 10105_ Hvy. Disruptor Cannon destroyed. 10105_ Penetrated by Slug. 10108_ Knocked back. 10108_ Penetrated by Slug. 10108_ Flexi-carbon Leg destroyed. 10110_ Dropped Myomer Leg. 10110_ Penetrated by Slug. 10110_ Slug penetrates Wall. 10110_ Dropped Prc. Energy Filter. 10111_ Dropped Phase Gun. 10111_ Penetrated by Slug. 10117_ P-80 Master resets P-80 Master, system corruption cleaned. 10124_ ALERT: Suspicious intruders detected, dispatching Cutter reinforcements to area. 10127_ System Shield destroyed. 10127_ System corrupted by crushing effect (+3). 10127_ Knocked back. Map ----- +----------------------------------------------------+ | ?????????????????????????????????????????????????? | | ?????????????????????????????????????????????????? | | ?????????????????????????####??#?????????????????? | | ????????????????????????? ??????????????????? | | ????????????????????????? ??????????????????? | | ????????????????????????? ???????????????????? | | ????????????????????????? ???????????????????? | | ????????????????????????? #???????????????????? | | ????????????????????????# #???????????????????? | | ?????????????????######## #???????????????????? | | ?????????????????# #???????????????????? | | ?????????????????# #???????#########???? | | ?????????????????# ????????# #???? | | ?????????????????+ ?????????# #???? | | ?????????????????# ###+#######????# ##### | | ?????????????????# # #????# # | | ?????????????????# # #????# # | | ?????????????????# # #???## # | | ???????########### # [ #???## " "" | | ???????#= # + ! ###### # "" | | ???????# # # H + + # | | ???????# # # ""T"" ###### # | | ???????# # # """"" #?#### # | | ????#+#######+#### #### ##############+######" | | ????# t | | ????# @ ^^ | | ????# ^ c ^^ | | ????# ^ c c e | | ????# ########+######### ######+###########/## | | ????#?????# ## # # | | ??????????# ## # !# | | ??????????# "" ## """ # # | | ??????????# """## """ # # | | ??????????# T"## """ # """ # """ | | ??????????# """## # """ # """ | | ??????????# "" ## # """ # """ | | ??????????# ## # # """ ! | | ??????????# ############ ? # """ ! | | ??????????##########??????????##???##### """ | | ???????????????????????????????????????# | | ???????????????????????????????????????# | | ??????????????????????????????????##############+# | | ??????????????????????????????????# """ #??????# # | | ??????????????????????????????????#""T""#??????# # | | ???????????????????????????????####"" ""######## # | | ???????????????????????????????# | | ???????????????????????????????# | | ???????????????????????????????# | | ???????????????????????????????# | | ???????????????????????????????# ####### | +----------------------------------------------------+ Best States ------------- Heat Dissipation 46 Energy Generation 21 Energy Capacity 325 Matter Stores 300 Matter Capacity 300 Sight Range 20 Robot Scan Range 16 Terrain Scan Density 10 Jamming Range 16 Armor Coverage 675 Resistance: TH 25 Core Shielding 20 Propulsion Shielding 66 Evasion (%) 64 Targeting Accuracy 8 Recoil Reduction 4 Energy Filtering 50 Offensive Hacking 30 Defensive Hacking 10 Item Schematics ----------------- None Robot Schematics ------------------ None Fabricated ------------ Nothing Alien Tech Used ----------------- None Achievements -------------- Novice Programmer Party Time Quantum Hacking Shopping List root@ Challenges ------------ None Game ------ Seed PointyPlasmaPenetrator Manual? 0 Play Time 01:37:22 Cumulative 26.1 hours Start 2024.10.10 @ 19:39:10 End 2024.10.11 @ 16:47:35 Sessions 1 Manual Loads 0 Difficulty Rogue Special Mode None Game No. 49 Rogue 49 Adventurer 0 Explorer 0 Win Type - Total 0 Types 0/0/0/0/0/0/0/0/0 Lore% 14 Gallery% 35 Achievement% 32 Wizard Run 0 Options --------- Layout 0 ASCII 0 Keyboard 1 Movement Numpad Keybinds 0 Fullscreen 2 Font 24/Terminus Map View 76x50 Zoom Use 0% Tactical HUD 1 Map Filters NONE Filters NONE Steam 1 RUN: 23191419-45a2-467f-b2c2-8ff40470d7fc